[Event "*** Titled Tuesday Blitz"]
[Site "Chess.com"]
[Date "2019.03.05"]
[Round "1"]
[White "Sashadav97"]
[Black "diskeleven"]
[Result "1-0"]
[WhiteElo "2639"]
[BlackElo "2274"]
[TimeControl "180+2"]
[EndTime "13:09:58 PST"]
[Termination "Sashadav97 won by resignation"]

1. d4 {[%clk 0:03:01.9]} 1... f5 {[%clk 0:03:00.5]} 2. c4 {[%clk 0:03:01.1]}
2... Nf6 {[%clk 0:03:01.2]} 3. Nc3 {[%clk 0:03:02.7]} 3... e6 {[%clk 0:03:02.1]}
4. e3 {[%clk 0:02:57.3]} 4... d5 {[%clk 0:03:02.8]} 5. h3 {[%clk 0:02:50.2]}
5... c6 {[%clk 0:02:43.6]} 6. g4 {[%clk 0:02:50.3]} 6... g6 {[%clk 0:02:33.7]}
7. Qb3 {[%clk 0:02:39]} 7... Qb6 {[%clk 0:02:30.1]} 8. Qc2 {[%clk 0:02:33.6]}
8... Be7 {[%clk 0:02:09.7]} 9. gxf5 {[%clk 0:02:13.1]} 9... gxf5 {[%clk
0:02:09.5]} 10. cxd5 {[%clk 0:02:12.6]} 10... Nxd5 {[%clk 0:01:57.3]} 11. Nxd5
{[%clk 0:02:10.8]} 11... exd5 {[%clk 0:01:58.2]} 12. Bd3 {[%clk 0:02:11]} 12...
Bb4+ {[%clk 0:01:49.7]} 13. Bd2 {[%clk 0:02:00.3]} 13... Bxd2+ {[%clk
0:01:50.4]} 14. Qxd2 {[%clk 0:02:02.2]} 14... Na6 {[%clk 0:01:35.9]} 15. Ne2
{[%clk 0:01:57.7]} 15... Nb4 {[%clk 0:01:32.2]} 16. Bb1 {[%clk 0:01:51.2]} 16...
Bd7 {[%clk 0:01:33.2]} 17. a3 {[%clk 0:01:50.7]} 17... Na6 {[%clk 0:01:34.4]}
18. Bd3 {[%clk 0:01:47.8]} 18... Nc7 {[%clk 0:01:34.7]} 19. Nc3 {[%clk
0:01:40.8]} 19... Qb3 {[%clk 0:01:27.8]} 20. Bc2 {[%clk 0:01:25.5]} 20... Qc4
{[%clk 0:01:28.6]} 21. O-O-O {[%clk 0:01:23.6]} 21... O-O-O {[%clk 0:01:25]} 22.
b3 {[%clk 0:01:20.9]} 22... Qa6 {[%clk 0:01:25.3]} 23. Kb2 {[%clk 0:01:22.4]}
23... Nb5 {[%clk 0:01:25.2]} 24. Na4 {[%clk 0:01:21.4]} 24... b6 {[%clk
0:01:24.3]} 25. Bd3 {[%clk 0:01:19.9]} 25... Rhg8 {[%clk 0:01:24.7]} 26. Rhg1
{[%clk 0:01:06.3]} 26... Kb8 {[%clk 0:01:24.6]} 27. Qc2 {[%clk 0:01:05.9]} 27...
Rxg1 {[%clk 0:01:11.5]} 28. Rxg1 {[%clk 0:01:07.8]} 28... Qa5 {[%clk 0:01:07.4]}
29. Rg7 {[%clk 0:01:03.3]} 29... f4 {[%clk 0:01:04]} 30. Bxb5 {[%clk 0:00:59.4]}
30... Qxb5 {[%clk 0:00:59.6]} 31. Rxh7 {[%clk 0:00:59.4]} 31... fxe3 {[%clk
0:00:59.6]} 32. fxe3 {[%clk 0:01:00.4]} 32... c5 {[%clk 0:00:57.8]} 33. Nc3
{[%clk 0:00:59]} 33... Qc6 {[%clk 0:00:57.5]} 34. Qh2+ {[%clk 0:00:54.7]} 34...
Ka8 {[%clk 0:00:57.4]} 35. Qe5 {[%clk 0:00:53.1]} 35... cxd4 {[%clk 0:00:57.9]}
36. exd4 {[%clk 0:00:44.3]} 36... Bc8 {[%clk 0:00:53.7]} 37. a4 {[%clk 0:00:30]}
37... Bb7 {[%clk 0:00:54.9]} 38. Nb5 {[%clk 0:00:28.9]} 38... a6 {[%clk
0:00:49.6]} 39. Qe7 {[%clk 0:00:24.9]} 39... Rc8 {[%clk 0:00:47]} 40. Qxb7+
{[%clk 0:00:21.5]} 40... Qxb7 {[%clk 0:00:47.8]} 41. Rxb7 {[%clk 0:00:23.4]}
41... axb5 {[%clk 0:00:47.5]} 42. Rxb6 {[%clk 0:00:24.8]} 42... bxa4 {[%clk
0:00:49]} 43. bxa4 {[%clk 0:00:26.4]} 43... Rh8 {[%clk 0:00:49.9]} 44. Rb3
{[%clk 0:00:27.5]} 44... Rh4 {[%clk 0:00:51.2]} 45. Rd3 {[%clk 0:00:29]} 45...
Kb7 {[%clk 0:00:52.7]} 46. Kb3 {[%clk 0:00:29.5]} 46... Kb6 {[%clk 0:00:54.1]}
47. Kb4 {[%clk 0:00:31.2]} 47... Rh6 {[%clk 0:00:55.1]} 48. a5+ {[%clk
0:00:32.6]} 48... Ka6 {[%clk 0:00:56.3]} 49. Kc5 {[%clk 0:00:34.1]} 49... Rh5
{[%clk 0:00:58.2]} 50. Ra3 {[%clk 0:00:35]} 50... Rf5 {[%clk 0:00:57.4]} 51. h4
{[%clk 0:00:35.8]} 51... Rh5 {[%clk 0:00:58]} 52. Kc6 {[%clk 0:00:35.5]} 52...
Ka7 {[%clk 0:00:55.6]} 53. a6 {[%clk 0:00:36.5]} 53... Rxh4 {[%clk 0:00:54.7]}
54. Kxd5 {[%clk 0:00:37.7]} 54... Rh8 {[%clk 0:00:55.2]} 55. Kc6 {[%clk
0:00:32]} 55... Rc8+ {[%clk 0:00:55.6]} 56. Kd7 {[%clk 0:00:32.9]} 56... Rh8
{[%clk 0:00:49.2]} 57. d5 {[%clk 0:00:34.2]} 57... Kb8 {[%clk 0:00:50.5]} 58.
a7+ {[%clk 0:00:35]} 58... Ka8 {[%clk 0:00:51.3]} 59. d6 {[%clk 0:00:36.3]}
59... Rh7+ {[%clk 0:00:52.6]} 60. Ke6 {[%clk 0:00:36.4]} 60... Rh6+ {[%clk
0:00:51.9]} 61. Kd5 {[%clk 0:00:37.8]} 61... Rh5+ {[%clk 0:00:52.8]} 62. Kc6
{[%clk 0:00:39.1]} 62... Rh6 {[%clk 0:00:53]} 63. Kc7 {[%clk 0:00:31.7]} 63...
Rh1 {[%clk 0:00:52.5]} 64. d7 {[%clk 0:00:31]} 64... Rc1+ {[%clk 0:00:53]} 65.
Kd8 {[%clk 0:00:32.3]} 65... Re1 {[%clk 0:00:52.8]} 66. Rc3 {[%clk 0:00:29.7]}
66... Kxa7 {[%clk 0:00:52.3]} 67. Kc8 {[%clk 0:00:30]} 67... Re6 {[%clk
0:00:48]} 68. Kc7 {[%clk 0:00:24.8]} 1-0

[Event "*** Titled Tuesday Blitz"]
[Site "Chess.com"]
[Date "2019.03.05"]
[Round "1"]
[White "Didici"]
[Black "Walter_White_Poland"]
[Result "1-0"]
[WhiteElo "2570"]
[BlackElo "2198"]
[TimeControl "180+2"]
[EndTime "13:10:01 PST"]
[Termination "Didici won by resignation"]

1. d4 {[%clk 0:03:01.6]} 1... Nf6 {[%clk 0:03:00.5]} 2. c4 {[%clk 0:03:02]} 2...
c5 {[%clk 0:03:01.5]} 3. d5 {[%clk 0:03:03.1]} 3... e6 {[%clk 0:03:02.7]} 4. Nc3
{[%clk 0:03:04.5]} 4... exd5 {[%clk 0:03:03.8]} 5. cxd5 {[%clk 0:03:06.4]} 5...
d6 {[%clk 0:03:04.8]} 6. e4 {[%clk 0:03:07.2]} 6... g6 {[%clk 0:03:05.7]} 7. h3
{[%clk 0:03:07]} 7... Bg7 {[%clk 0:03:06.5]} 8. Nf3 {[%clk 0:03:08.7]} 8... O-O
{[%clk 0:03:07.1]} 9. Bd3 {[%clk 0:03:10.3]} 9... b5 {[%clk 0:03:07.9]} 10. Nxb5
{[%clk 0:03:09.2]} 10... Re8 {[%clk 0:03:06.7]} 11. O-O {[%clk 0:03:09.8]} 11...
Nxe4 {[%clk 0:03:07.3]} 12. Re1 {[%clk 0:03:09.9]} 12... a6 {[%clk 0:03:06.4]}
13. Nc3 {[%clk 0:03:10.4]} 13... Nxc3 {[%clk 0:03:06.2]} 14. bxc3 {[%clk
0:03:12.3]} 14... Bxc3 {[%clk 0:03:04.6]} 15. Rxe8+ {[%clk 0:03:12.9]} 15...
Qxe8 {[%clk 0:03:05.6]} 16. Rb1 {[%clk 0:03:14.8]} 16... Nd7 {[%clk 0:01:39.9]}
17. Qa4 {[%clk 0:03:15.1]} 17... Qd8 {[%clk 0:01:41]} 18. Rb3 {[%clk 0:01:49.8]}
18... Bg7 {[%clk 0:01:37.3]} 19. Qc6 {[%clk 0:01:49.3]} 19... Rb8 {[%clk
0:01:32.4]} 20. Qxd6 {[%clk 0:01:45.9]} 20... Rxb3 {[%clk 0:01:33]} 21. axb3
{[%clk 0:01:41.6]} 21... Qb6 {[%clk 0:01:22.2]} 22. Qxb6 {[%clk 0:01:17.9]}
22... Nxb6 {[%clk 0:01:22.9]} 23. d6 {[%clk 0:01:19.8]} 23... Be6 {[%clk
0:01:22.5]} 24. Bxa6 {[%clk 0:01:07.9]} 24... Bxb3 {[%clk 0:01:21.8]} 25. Be3
{[%clk 0:01:09.4]} 25... Nd7 {[%clk 0:01:15]} 26. Bb5 {[%clk 0:01:08.2]} 26...
Be6 {[%clk 0:01:11.2]} 27. Ng5 {[%clk 0:01:08.4]} 27... Nf8 {[%clk 0:00:22.8]}
28. Bxc5 {[%clk 0:00:54]} 28... Bf6 {[%clk 0:00:23.3]} 29. Ne4 {[%clk
0:00:46.2]} 29... Bd8 {[%clk 0:00:21.3]} 30. Bd4 {[%clk 0:00:35.3]} 30... f5
{[%clk 0:00:20]} 31. Nf6+ {[%clk 0:00:33.7]} 31... Bxf6 {[%clk 0:00:21]} 32.
Bxf6 {[%clk 0:00:35.6]} 32... Kf7 {[%clk 0:00:20.1]} 33. Be7 {[%clk 0:00:36.9]}
33... Bd7 {[%clk 0:00:19.3]} 34. Bc4+ {[%clk 0:00:31.6]} 34... Ne6 {[%clk
0:00:18.7]} 35. f4 {[%clk 0:00:26.9]} 35... h6 {[%clk 0:00:16.3]} 36. Kf2 {[%clk
0:00:28]} 36... Ke8 {[%clk 0:00:16.3]} 37. Ke3 {[%clk 0:00:28.2]} 37... Bc8
{[%clk 0:00:07.9]} 38. g4 {[%clk 0:00:27.9]} 38... Bd7 {[%clk 0:00:07.9]} 39.
gxf5 {[%clk 0:00:28.6]} 39... gxf5 {[%clk 0:00:08.4]} 40. Bd3 {[%clk 0:00:30.5]}
40... Nc5 {[%clk 0:00:08.4]} 41. Bc2 {[%clk 0:00:30.9]} 41... Kf7 {[%clk
0:00:08.5]} 42. Kd4 {[%clk 0:00:32.1]} 42... Nb7 {[%clk 0:00:05.8]} 43. Ke5
{[%clk 0:00:32.7]} 43... Kg6 {[%clk 0:00:05.4]} 44. Kd5 {[%clk 0:00:21.4]} 44...
Na5 {[%clk 0:00:05.4]} 45. Kc5 {[%clk 0:00:10]} 45... Nc6 {[%clk 0:00:06.1]} 46.
Ba4 {[%clk 0:00:11.2]} 46... Nb8 {[%clk 0:00:05.4]} 47. Bxd7 {[%clk 0:00:12.9]}
47... Nxd7+ {[%clk 0:00:06]} 48. Kc6 {[%clk 0:00:14.8]} 48... Nb8+ {[%clk
0:00:04.6]} 49. Kc7 {[%clk 0:00:16.1]} 49... Na6+ {[%clk 0:00:05.4]} 50. Kc8
{[%clk 0:00:17.7]} 50... Nc5 {[%clk 0:00:05.1]} 51. d7 {[%clk 0:00:19.6]} 51...
Nxd7 {[%clk 0:00:06]} 52. Kxd7 {[%clk 0:00:21.5]} 52... Kf7 {[%clk 0:00:03.6]}
53. Kd6 {[%clk 0:00:22.8]} 53... h5 {[%clk 0:00:04.4]} 54. Bh4 {[%clk 0:00:24]}
54... Kg6 {[%clk 0:00:04.6]} 55. Ke5 {[%clk 0:00:25.9]} 1-0

[Event "*** Titled Tuesday Blitz"]
[Site "Chess.com"]
[Date "2019.03.05"]
[Round "1"]
[White "Yurovskykh_Oleksandr"]
[Black "Jenia84"]
[Result "1/2-1/2"]
[WhiteElo "2536"]
[BlackElo "2178"]
[TimeControl "180+2"]
[EndTime "13:10:11 PST"]
[Termination "Game drawn - insufficient material"]

1. d4 {[%clk 0:02:58.9]} 1... Nf6 {[%clk 0:02:59.7]} 2. Nf3 {[%clk 0:02:59.3]}
2... b6 {[%clk 0:02:57.6]} 3. Bg5 {[%clk 0:02:59]} 3... e6 {[%clk 0:02:54.7]} 4.
e4 {[%clk 0:02:54.4]} 4... Bb7 {[%clk 0:02:48.4]} 5. Nbd2 {[%clk 0:02:48.3]}
5... h6 {[%clk 0:02:49]} 6. Bxf6 {[%clk 0:02:48.8]} 6... Qxf6 {[%clk 0:02:49.1]}
7. c3 {[%clk 0:02:50.7]} 7... c5 {[%clk 0:02:47.1]} 8. Bd3 {[%clk 0:02:29.9]}
8... Qd8 {[%clk 0:02:45.1]} 9. O-O {[%clk 0:02:28.4]} 9... Nc6 {[%clk
0:02:44.8]} 10. d5 {[%clk 0:02:19.3]} 10... Ne7 {[%clk 0:02:35.2]} 11. Nc4
{[%clk 0:01:53.1]} 11... Ng6 {[%clk 0:02:33]} 12. e5 {[%clk 0:01:45.9]} 12...
Bxd5 {[%clk 0:02:30.3]} 13. Bxg6 {[%clk 0:01:33.5]} 13... fxg6 {[%clk
0:02:30.1]} 14. Qd3 {[%clk 0:01:26.3]} 14... Kf7 {[%clk 0:02:28.2]} 15. Ne3
{[%clk 0:01:25.3]} 15... Bxf3 {[%clk 0:02:24.5]} 16. gxf3 {[%clk 0:01:25.2]}
16... Qg5+ {[%clk 0:02:23.6]} 17. Kh1 {[%clk 0:01:25.6]} 17... Qf4 {[%clk
0:02:19.2]} 18. Ng2 {[%clk 0:01:16.8]} 18... Qxe5 {[%clk 0:02:10.1]} 19. Qxd7+
{[%clk 0:01:10.5]} 19... Be7 {[%clk 0:02:10.1]} 20. Rae1 {[%clk 0:01:09.2]}
20... Qd6 {[%clk 0:02:05]} 21. Qb7 {[%clk 0:01:09.6]} 21... Qd5 {[%clk
0:01:58.6]} 22. Qa6 {[%clk 0:00:49.6]} 22... Rhf8 {[%clk 0:01:53.5]} 23. Re4
{[%clk 0:00:48.6]} 23... Kg8 {[%clk 0:01:51.6]} 24. Nf4 {[%clk 0:00:39.7]} 24...
Rxf4 {[%clk 0:01:37.6]} 25. Rxf4 {[%clk 0:00:41.6]} 25... Bd6 {[%clk 0:01:38.3]}
26. Rg4 {[%clk 0:00:42.7]} 26... Qxf3+ {[%clk 0:01:36.5]} 27. Rg2 {[%clk
0:00:44.2]} 27... Rf8 {[%clk 0:01:20.9]} 28. Qc4 {[%clk 0:00:44.1]} 28... Kh7
{[%clk 0:01:16.7]} 29. Qxe6 {[%clk 0:00:39.6]} 29... Rf6 {[%clk 0:01:17.6]} 30.
Qg4 {[%clk 0:00:39.1]} 30... Qd3 {[%clk 0:00:59.1]} 31. Qd1 {[%clk 0:00:38.9]}
31... Qh3 {[%clk 0:00:54.6]} 32. Qg4 {[%clk 0:00:28.2]} 32... Qd3 {[%clk
0:00:55.3]} 33. Rd1 {[%clk 0:00:20.8]} 33... Qc2 {[%clk 0:00:55.8]} 34. f4
{[%clk 0:00:18.6]} 34... Qe4 {[%clk 0:00:48.3]} 35. f5 {[%clk 0:00:12.3]} 35...
Qxg4 {[%clk 0:00:48.7]} 36. Rxg4 {[%clk 0:00:12.2]} 36... gxf5 {[%clk
0:00:49.7]} 37. Ra4 {[%clk 0:00:10]} 37... a5 {[%clk 0:00:49.2]} 38. c4 {[%clk
0:00:11.5]} 38... f4 {[%clk 0:00:48.7]} 39. Ra3 {[%clk 0:00:12.9]} 39... Be5
{[%clk 0:00:49]} 40. Rad3 {[%clk 0:00:10.2]} 40... Bd4 {[%clk 0:00:49.8]} 41.
Kg2 {[%clk 0:00:10.6]} 41... f3+ {[%clk 0:00:50.1]} 42. Kf1 {[%clk 0:00:09.8]}
42... g5 {[%clk 0:00:50.4]} 43. h3 {[%clk 0:00:10.5]} 43... h5 {[%clk 0:00:51]}
44. Rxd4 {[%clk 0:00:08.1]} 44... cxd4 {[%clk 0:00:50.8]} 45. Rxd4 {[%clk
0:00:10]} 45... Kg6 {[%clk 0:00:51.7]} 46. Kf2 {[%clk 0:00:11.2]} 46... Kf7
{[%clk 0:00:41.6]} 47. Rd5 {[%clk 0:00:10.5]} 47... g4 {[%clk 0:00:33.8]} 48.
hxg4 {[%clk 0:00:10.8]} 48... hxg4 {[%clk 0:00:34.4]} 49. Rd1 {[%clk 0:00:05.6]}
49... Rf4 {[%clk 0:00:32.7]} 50. b3 {[%clk 0:00:06.1]} 50... Kg6 {[%clk
0:00:32.4]} 51. Kg3 {[%clk 0:00:07.4]} 51... Kg5 {[%clk 0:00:33.4]} 52. Rd5+
{[%clk 0:00:06.2]} 52... Rf5 {[%clk 0:00:34.3]} 53. Rd2 {[%clk 0:00:06.6]} 53...
Re5 {[%clk 0:00:32.3]} 54. a3 {[%clk 0:00:03.8]} 54... Kf5 {[%clk 0:00:31.8]}
55. b4 {[%clk 0:00:04.8]} 55... axb4 {[%clk 0:00:31.8]} 56. axb4 {[%clk
0:00:06.7]} 56... Re4 {[%clk 0:00:32.8]} 57. c5 {[%clk 0:00:06.4]} 57... bxc5
{[%clk 0:00:34]} 58. bxc5 {[%clk 0:00:08.3]} 58... Ke6 {[%clk 0:00:34]} 59. c6
{[%clk 0:00:08.2]} 59... Rc4 {[%clk 0:00:33.9]} 60. c7 {[%clk 0:00:07.3]} 60...
Rxc7 {[%clk 0:00:34.1]} 61. Kxg4 {[%clk 0:00:08.4]} 61... Rf7 {[%clk 0:00:34.8]}
62. Rf2 {[%clk 0:00:08.4]} 62... Ke5 {[%clk 0:00:35.4]} 63. Rxf3 {[%clk
0:00:09.5]} 63... Rg7+ {[%clk 0:00:36]} 64. Kh3 {[%clk 0:00:10.2]} 64... Ke4
{[%clk 0:00:36]} 65. Rg3 {[%clk 0:00:11]} 65... Rxg3+ {[%clk 0:00:36.2]} 66.
Kxg3 {[%clk 0:00:12.9]} 1/2-1/2

[Event "*** Titled Tuesday Blitz"]
[Site "Chess.com"]
[Date "2019.03.05"]
[Round "1"]
[White "Svet99"]
[Black "Orange_Ghost"]
[Result "0-1"]
[WhiteElo "2159"]
[BlackElo "2541"]
[TimeControl "180+2"]
[EndTime "13:10:11 PST"]
[Termination "Orange_Ghost won by resignation"]

1. Nf3 {[%clk 0:03:00.1]} 1... Nf6 {[%clk 0:02:59.9]} 2. d4 {[%clk 0:03:00.4]}
2... g6 {[%clk 0:03:00.4]} 3. c4 {[%clk 0:03:00.5]} 3... Bg7 {[%clk 0:03:00.5]}
4. Nc3 {[%clk 0:03:00.5]} 4... d5 {[%clk 0:03:00.7]} 5. cxd5 {[%clk 0:02:44.2]}
5... Nxd5 {[%clk 0:03:02.6]} 6. e4 {[%clk 0:02:44.9]} 6... Nxc3 {[%clk
0:03:02.6]} 7. bxc3 {[%clk 0:02:45.8]} 7... O-O {[%clk 0:03:00]} 8. Bc4 {[%clk
0:02:42.5]} 8... c5 {[%clk 0:02:59.4]} 9. O-O {[%clk 0:02:39.7]} 9... Nc6 {[%clk
0:02:42.4]} 10. Bb2 {[%clk 0:02:39]} 10... b6 {[%clk 0:02:36.4]} 11. e5 {[%clk
0:01:47.1]} 11... Na5 {[%clk 0:02:07.9]} 12. Bd3 {[%clk 0:01:43.9]} 12... Bb7
{[%clk 0:02:06.1]} 13. Qe2 {[%clk 0:01:43]} 13... e6 {[%clk 0:01:45.1]} 14. Rfd1
{[%clk 0:01:42.5]} 14... Qc7 {[%clk 0:01:43.7]} 15. Rac1 {[%clk 0:01:39.4]}
15... Rfd8 {[%clk 0:01:37.4]} 16. Be4 {[%clk 0:01:32.9]} 16... Bxe4 {[%clk
0:01:31]} 17. Qxe4 {[%clk 0:01:33.3]} 17... Rac8 {[%clk 0:01:27.3]} 18. Rb1
{[%clk 0:01:30.1]} 18... Qd7 {[%clk 0:01:17.8]} 19. Bc1 {[%clk 0:01:29.6]} 19...
h6 {[%clk 0:01:09]} 20. Qh4 {[%clk 0:01:24.2]} 20... g5 {[%clk 0:00:47.8]} 21.
Bxg5 {[%clk 0:01:06.9]} 21... hxg5 {[%clk 0:00:49.7]} 22. Nxg5 {[%clk
0:01:07.6]} 22... Bxe5 {[%clk 0:00:32.4]} 23. Qh7+ {[%clk 0:00:42.3]} 23... Kf8
{[%clk 0:00:31.9]} 24. Qh5 {[%clk 0:00:37]} 24... Bg7 {[%clk 0:00:32.1]} 25. Rd3
{[%clk 0:00:33.2]} 25... cxd4 {[%clk 0:00:26.8]} 26. Rf3 {[%clk 0:00:33.6]}
26... f5 {[%clk 0:00:24]} 27. Nh7+ {[%clk 0:00:23.7]} 27... Kg8 {[%clk
0:00:24.5]} 28. Rg3 {[%clk 0:00:22.7]} 28... Qe7 {[%clk 0:00:25]} 29. Rg6 {[%clk
0:00:21.4]} 29... dxc3 {[%clk 0:00:20.6]} 30. Nf6+ {[%clk 0:00:12]} 30... Kf8
{[%clk 0:00:21.5]} 31. Nh7+ {[%clk 0:00:12.3]} 31... Kg8 {[%clk 0:00:19.4]} 32.
Nf6+ {[%clk 0:00:13.2]} 32... Qxf6 {[%clk 0:00:18.3]} 33. Rxf6 {[%clk
0:00:14.1]} 33... Bxf6 {[%clk 0:00:20.2]} 34. Qg6+ {[%clk 0:00:15.2]} 34... Bg7
{[%clk 0:00:21.6]} 35. Qxe6+ {[%clk 0:00:16.2]} 35... Kh8 {[%clk 0:00:23.1]} 36.
Qxf5 {[%clk 0:00:16.4]} 36... c2 {[%clk 0:00:23.5]} 37. Qh3+ {[%clk 0:00:17.3]}
37... Kg8 {[%clk 0:00:24.4]} 38. Qe6+ {[%clk 0:00:18.1]} 38... Kh7 {[%clk
0:00:23.8]} 39. Qf5+ {[%clk 0:00:18.2]} 39... Kh8 {[%clk 0:00:21.9]} 40. Qh3+
{[%clk 0:00:19]} 40... Kg8 {[%clk 0:00:23.4]} 41. Qe6+ {[%clk 0:00:19.4]} 41...
Kf8 {[%clk 0:00:15.1]} 42. Qf5+ {[%clk 0:00:20.1]} 42... Kg8 {[%clk 0:00:07.7]}
43. Qe6+ {[%clk 0:00:20.6]} 43... Kh7 {[%clk 0:00:08.5]} 44. Qf5+ {[%clk
0:00:21.2]} 44... Kh6 {[%clk 0:00:09]} 45. Qe6+ {[%clk 0:00:19.4]} 45... Kh7
{[%clk 0:00:09.6]} 46. Qf5+ {[%clk 0:00:20.2]} 46... Kg8 {[%clk 0:00:11.5]} 47.
Qe6+ {[%clk 0:00:20.9]} 47... Kf8 {[%clk 0:00:13.4]} 48. Qf5+ {[%clk 0:00:21.6]}
48... Ke7 {[%clk 0:00:08.9]} 49. Re1+ {[%clk 0:00:21.8]} 49... Kd6 {[%clk
0:00:10.4]} 50. Re6+ {[%clk 0:00:11]} 50... Kc7 {[%clk 0:00:10.6]} 51. Qxc2+
{[%clk 0:00:11.3]} 51... Kb8 {[%clk 0:00:10.7]} 52. Qb1 {[%clk 0:00:11]} 52...
Nc4 {[%clk 0:00:10.3]} 53. Re1 {[%clk 0:00:09.2]} 53... Bc3 {[%clk 0:00:10.9]}
54. Rd1 {[%clk 0:00:09.4]} 54... Rxd1+ {[%clk 0:00:10.7]} 55. Qxd1 {[%clk
0:00:10.1]} 55... Re8 {[%clk 0:00:12.4]} 56. Qf1 {[%clk 0:00:05.7]} 56... Re1
{[%clk 0:00:12.9]} 57. h4 {[%clk 0:00:05.8]} 57... Rxf1+ {[%clk 0:00:13.7]} 58.
Kxf1 {[%clk 0:00:06.9]} 58... Kc7 {[%clk 0:00:15.6]} 59. h5 {[%clk 0:00:08.1]}
59... Bh8 {[%clk 0:00:16.5]} 0-1

[Event "*** Titled Tuesday Blitz"]
[Site "Chess.com"]
[Date "2019.03.05"]
[Round "1"]
[White "lolo9292"]
[Black "GianmarcoVaR"]
[Result "0-1"]
[WhiteElo "2066"]
[BlackElo "2491"]
[TimeControl "180+2"]
[EndTime "13:10:12 PST"]
[Termination "GianmarcoVaR won by resignation"]

1. Nf3 {[%clk 0:03:01.4]} 1... Nf6 {[%clk 0:02:55.3]} 2. c4 {[%clk 0:03:01.8]}
2... b6 {[%clk 0:02:53.5]} 3. g3 {[%clk 0:03:01.4]} 3... Bb7 {[%clk 0:02:51.8]}
4. Bg2 {[%clk 0:03:02.1]} 4... c5 {[%clk 0:02:51.5]} 5. O-O {[%clk 0:03:01.5]}
5... g6 {[%clk 0:02:52.8]} 6. b3 {[%clk 0:02:58.1]} 6... Bg7 {[%clk 0:02:53.6]}
7. Bb2 {[%clk 0:02:59.3]} 7... O-O {[%clk 0:02:54.8]} 8. d4 {[%clk 0:03:00.7]}
8... cxd4 {[%clk 0:02:55.3]} 9. Qxd4 {[%clk 0:03:02.6]} 9... Nc6 {[%clk
0:02:54.8]} 10. Qc3 {[%clk 0:03:04.2]} 10... Rc8 {[%clk 0:02:52.3]} 11. Rd1
{[%clk 0:03:02.9]} 11... Qc7 {[%clk 0:02:43.1]} 12. Qe1 {[%clk 0:03:02.6]} 12...
Qb8 {[%clk 0:02:39.8]} 13. Nc3 {[%clk 0:03:03.4]} 13... a6 {[%clk 0:02:26.7]}
14. Rac1 {[%clk 0:03:02.5]} 14... d6 {[%clk 0:02:13.6]} 15. e4 {[%clk
0:02:46.7]} 15... Ba8 {[%clk 0:02:03.5]} 16. Nd5 {[%clk 0:02:45.2]} 16... Nd7
{[%clk 0:01:51.4]} 17. Bxg7 {[%clk 0:02:47.1]} 17... Kxg7 {[%clk 0:01:52.4]} 18.
Qc3+ {[%clk 0:02:22]} 18... Kg8 {[%clk 0:01:41.3]} 19. Nd4 {[%clk 0:02:21.6]}
19... Rfe8 {[%clk 0:01:39.5]} 20. Nxc6 {[%clk 0:02:11.7]} 20... Bxc6 {[%clk
0:01:40.4]} 21. Bh3 {[%clk 0:02:07.2]} 21... e6 {[%clk 0:01:38.4]} 22. Qa1
{[%clk 0:01:38.8]} 22... b5 {[%clk 0:00:55.6]} 23. cxb5 {[%clk 0:01:19.6]} 23...
axb5 {[%clk 0:00:56]} 24. Rc2 {[%clk 0:00:27.2]} 24... Qb7 {[%clk 0:00:17]} 25.
Rcd2 {[%clk 0:00:18]} 25... b4 {[%clk 0:00:10]} 26. Nf6+ {[%clk 0:00:08.6]}
26... Nxf6 {[%clk 0:00:10.1]} 27. Qxf6 {[%clk 0:00:06.1]} 27... Bxe4 {[%clk
0:00:10.7]} 28. Rxd6 {[%clk 0:00:08]} 28... Qe7 {[%clk 0:00:10.8]} 29. Qxe7
{[%clk 0:00:08.6]} 29... Rxe7 {[%clk 0:00:11.6]} 30. Rd8+ {[%clk 0:00:10.5]}
30... Rxd8 {[%clk 0:00:12.4]} 31. Rxd8+ {[%clk 0:00:12.4]} 31... Kg7 {[%clk
0:00:13.7]} 32. Rd4 {[%clk 0:00:14.1]} 32... Bd5 {[%clk 0:00:11.8]} 33. Rxb4
{[%clk 0:00:14.7]} 33... Rc7 {[%clk 0:00:12.9]} 34. f4 {[%clk 0:00:13.1]} 34...
Rc1+ {[%clk 0:00:12.5]} 35. Bf1 {[%clk 0:00:14]} 35... h5 {[%clk 0:00:06.4]} 36.
a4 {[%clk 0:00:13.5]} 36... h4 {[%clk 0:00:07.6]} 37. a5 {[%clk 0:00:14.2]}
37... h3 {[%clk 0:00:07.9]} 38. Kf2 {[%clk 0:00:14.9]} 38... Rc2+ {[%clk
0:00:07.8]} 39. Kg1 {[%clk 0:00:16.3]} 39... Rc1 {[%clk 0:00:07]} 40. Kf2 {[%clk
0:00:17.1]} 40... Rc2+ {[%clk 0:00:07.7]} 41. Be2 {[%clk 0:00:17.4]} 41... Ra2
{[%clk 0:00:05.3]} 42. a6 {[%clk 0:00:17]} 42... Ra3 {[%clk 0:00:06.3]} 43. Ke3
{[%clk 0:00:14.6]} 43... Bxb3 {[%clk 0:00:06.8]} 44. Kd3 {[%clk 0:00:11.8]}
44... Bd5+ {[%clk 0:00:05.7]} 45. Kd4 {[%clk 0:00:12.8]} 45... Ra2 {[%clk
0:00:05.7]} 46. Bb5 {[%clk 0:00:11]} 46... Rxh2 {[%clk 0:00:06.1]} 47. a7 {[%clk
0:00:10.5]} 47... Ra2 {[%clk 0:00:07]} 48. Bc4 {[%clk 0:00:10]} 48... Rxa7
{[%clk 0:00:07]} 49. Bxd5 {[%clk 0:00:10.6]} 49... Rd7 {[%clk 0:00:08.2]} 50.
Rb2 {[%clk 0:00:12.3]} 50... Rxd5+ {[%clk 0:00:09.3]} 51. Ke4 {[%clk 0:00:13.8]}
51... Rh5 {[%clk 0:00:10.2]} 52. Rh2 {[%clk 0:00:14.1]} 52... g5 {[%clk
0:00:10.6]} 53. Kf3 {[%clk 0:00:14.2]} 53... gxf4 {[%clk 0:00:09.1]} 54. gxf4
{[%clk 0:00:15.7]} 54... Kf6 {[%clk 0:00:09.9]} 55. Kg4 {[%clk 0:00:17]} 55...
Rh8 {[%clk 0:00:10]} 56. Rh1 {[%clk 0:00:17.2]} 56... h2 {[%clk 0:00:10.1]} 57.
Kg3 {[%clk 0:00:18.5]} 57... Kf5 {[%clk 0:00:11.1]} 58. Kf3 {[%clk 0:00:19.8]}
58... Rh4 {[%clk 0:00:11.7]} 59. Kg2 {[%clk 0:00:20.8]} 59... Kxf4 {[%clk
0:00:11.8]} 60. Rf1+ {[%clk 0:00:21.3]} 60... Kg5 {[%clk 0:00:12.5]} 61. Rh1
{[%clk 0:00:22.4]} 61... f5 {[%clk 0:00:13.3]} 62. Rxh2 {[%clk 0:00:23.3]} 62...
Rxh2+ {[%clk 0:00:13.6]} 0-1